[Event "29. Klatovy A 2023"]
[Site "Klatovy"]
[Date "2023.07.01"]
[Round "1.1"]
[White "Martirosyan, David"]
[Black "Straka, Vojtech"]
[Result "1/2-1/2"]
[ECO "D36"]
[WhiteElo "1908"]
[BlackElo "2433"]
[PlyCount "88"]
[EventDate "2023.07.01"]
[EventType "swiss"]
[EventRounds "9"]
[EventCountry "CZE"]
[TimeControl "120+30"]

1. d4 {[%emt 0:00:02]} d5 {[%emt 0:01:39]} 2. c4 {[%emt 0:00:08]} e6 {[%emt 0:00:14]} 3. Nc3 {[%emt 0:00:27]} Nf6 {[%emt 0:01:08]} 4. cxd5 {[%emt 0:00:22]} exd5 {[%emt 0:00:02]} 5. Bg5 {[%emt 0:00:23]} c6 {[%emt 0:01:47]} 6. e3 {[%emt 0:00:17]} Be7 {[%emt 0:00:15]} 7. Bd3 {[%emt 0:00:41]} O-O {[%emt 0:00:13]} 8. Qc2 {[%emt 0:00:52]} Nbd7 {[%emt 0:00:11]} 9. Nge2 {[%emt 0:01:25]} Re8 {[%emt 0:03:01]} 10. O-O {[%emt 0:00:14]} Nf8 {[%emt 0:05:02]} 11. f3 {[%emt 0:01:12]} Ng6 {[%emt 0:08:23]} 12. Rad1 {[%emt 0:02:22]} h6 {[%emt 0:07:04]} 13. Bxf6 {[%emt 0:01:43]} Bxf6 {[%emt 0:02:56]} 14. Bxg6 {[%emt 0:01:06]} fxg6 {[%emt 0:00:19]} 15. e4 {[%emt 0:00:17]} Be6 {[%emt 0:36:21]} 16. e5 {[%emt 0:08:57]} Bf5 {[%emt 0:02:56]} 17. Qb3 {[%emt 0:01:36]} Bg5 {[%emt 0:00:49]} 18. Ng3 {[%emt 0:15:29]} Qb6 {[%emt 0:09:15]} 19. f4 {[%emt 0:06:14]} Qxb3 {[%emt 0:06:07]} 20. axb3 {[%emt 0:00:08]} Be7 {[%emt 0:00:06]} 21. Nxf5 {[%emt 0:03:31]} gxf5 {[%emt 0:01:09]} 22. Rc1 {[%emt 0:01:09]} Kf7 {[%emt 0:09:57]} 23. Na4 {[%emt 0:02:19]} Ke6 {[%emt 0:06:48]} 24. Nc5+ {[%emt 0:01:34]} Bxc5 {[%emt 0:00:02]} 25. Rxc5 {[%emt 0:00:24]} g5 {[%emt 0:03:23]} 26. Rc3 {[%emt 0:04:01]} g4 {[%emt 0:06:16]} 27. h4 {[%emt 0:02:41]} a5 {[%emt 0:01:39]} 28. Ra1 {[%emt 0:05:52]} Ra6 {[%emt 0:03:35]} 29. g3 {[%emt 0:01:09]} Rea8 {[%emt 0:00:17]} 30. Ra4 {[%emt 0:00:51]} Rb6 {[%emt 0:01:21]} 31. Kf2 {[%emt 0:01:42]} Raa6 {[%emt 0:02:13]} 32. Ke3 {[%emt 0:11:26]} Rb4 {[%emt 0:01:13]} 33. Kd3 {[%emt 0:00:47]} Rab6 {[%emt 0:00:54]} 34. Kc2 {[%emt 0:00:10]} R6b5 {[%emt 0:04:13]} 35. Rd3 {[%emt 0:02:07]} h5 {[%emt 0:01:18]} 36. Ra3 {[%emt 0:01:37]} b6 {[%emt 0:01:43]} 37. Ra4 {[%emt 0:04:03]} c5 {[%emt 0:00:50]} 38. Rxb4 {[%emt 0:04:25]} axb4 {[%emt 0:01:41]} 39. Rd1 {[%emt 0:01:56]} Ra5 {[%emt 0:00:07]} 40. Kd3 {[%emt 0:08:34]} Ra2 {[%emt 0:00:17]} 41. Kc2 {[%emt 0:00:19]} Ra8 {[%emt 0:01:22]} 42. Kd3 {[%emt 0:00:38]} Ra7 {[%emt 0:00:58]} 43. Rc1 {[%emt 0:02:24]} Ra5 {[%emt 0:00:40]} 44. Rd1 {[%emt 0:00:23] Kxe5 Ke4+} Ra8 {[%emt 0:00:08]} 1/2-1/2

[Event "29. Klatovy A 2023"]
[Site "Klatovy"]
[Date "2023.07.01"]
[Round "1.2"]
[White "Neuman, Petr"]
[Black "Mametev, Artem"]
[Result "1/2-1/2"]
[ECO "E92"]
[WhiteElo "2398"]
[BlackElo "1991"]
[PlyCount "114"]
[EventDate "2023.07.01"]
[EventType "swiss"]
[EventRounds "9"]
[EventCountry "CZE"]
[TimeControl "120+30"]

1. d4 {[%emt 0:00:03]} Nf6 {[%emt 0:00:08]} 2. c4 {[%emt 0:00:04]} g6 {[%emt 0:00:04]} 3. Nc3 {[%emt 0:00:04]} Bg7 {[%emt 0:00:04]} 4. e4 {[%emt 0:00:04]} d6 {[%emt 0:00:04]} 5. Nf3 {[%emt 0:00:05]} O-O {[%emt 0:00:17]} 6. Be2 {[%emt 0:00:04]} e5 {[%emt 0:00:08]} 7. Be3 {[%emt 0:00:07]} exd4 {[%emt 0:04:56]} 8. Nxd4 {[%emt 0:00:22]} Re8 {[%emt 0:00:10]} 9. f3 {[%emt 0:00:06]} c6 {[%emt 0:00:18]} 10. Bf2 {[%emt 0:00:09]} d5 {[%emt 0:03:26]} 11. exd5 {[%emt 0:00:08]} cxd5 {[%emt 0:00:48]} 12. O-O {[%emt 0:00:08]} Nc6 {[%emt 0:11:38]} 13. c5 {[%emt 0:01:58]} Nxd4 {[%emt 0:17:56]} 14. Bxd4 {[%emt 0:01:13]} Be6 {[%emt 0:00:31]} 15. Qd2 {[%emt 0:01:07]} Nh5 {[%emt 0:08:33]} 16. Bb5 {[%emt 0:02:57]} Rf8 {[%emt 0:02:54]} 17. Rad1 {[%emt 0:01:43]} Qc7 {[%emt 0:03:21]} 18. b4 {[%emt 0:03:36]} Rad8 {[%emt 0:02:53]} 19. Ba4 {[%emt 0:02:14]} Bxd4+ {[%emt 0:04:19]} 20. Qxd4 {[%emt 0:00:19]} Ng7 {[%emt 0:00:28]} 21. Bc2 {[%emt 0:01:55]} b6 {[%emt 0:05:40]} 22. cxb6 {[%emt 0:01:23]} axb6 {[%emt 0:03:11]} 23. Bd3 {[%emt 0:00:41]} Qb7 {[%emt 0:02:21]} 24. Rf2 {[%emt 0:01:06]} Bf5 {[%emt 0:02:53]} 25. Bf1 {[%emt 0:00:55]} Be6 {[%emt 0:02:35]} 26. g4 {[%emt 0:07:56]} f5 {[%emt 0:07:51]} 27. Bg2 {[%emt 0:03:06]} Qb8 {[%emt 0:12:49]} 28. Na4 {[%emt 0:07:49]} fxg4 {[%emt 0:04:43]} 29. fxg4 {[%emt 0:00:32]} Rxf2 {[%emt 0:01:58]} 30. Qxf2 {[%emt 0:00:05]} Bxg4 {[%emt 0:01:58]} 31. Rxd5 {[%emt 0:00:20]} Be6 {[%emt 0:02:02]} 32. Rd2 {[%emt 0:04:08]} Rxd2 {[%emt 0:00:45]} 33. Qxd2 {[%emt 0:00:04]} Nf5 {[%emt 0:02:07]} 34. Bh3 {[%emt 0:02:01]} Qc7 {[%emt 0:04:08]} 35. a3 {[%emt 0:00:59]} Qe5 {[%emt 0:06:45]} 36. Nxb6 {[%emt 0:01:54]} Qa1+ {[%emt 0:00:53]} 37. Kf2 {[%emt 0:00:17]} Qxa3 {[%emt 0:02:56]} 38. Bxf5 {[%emt 0:01:01]} Bxf5 {[%emt 0:00:09]} 39. Nd5 {[%emt 0:00:50]} Qh3 {[%emt 0:01:08]} 40. Qf4 {[%emt 0:00:59]} Qd3 {[%emt 0:04:57]} 41. Qb8+ {[%emt 0:03:41]} Kg7 {[%emt 0:00:09]} 42. Qa7+ {[%emt 0:00:39]} Kh8 {[%emt 0:02:16]} 43. Qb8+ {[%emt 0:01:46]} Kg7 {[%emt 0:00:05]} 44. Qe5+ {[%emt 0:00:13]} Kh6 {[%emt 0:00:42]} 45. Qe3+ {[%emt 0:00:07]} Kg7 {[%emt 0:00:23]} 46. Qxd3 {[%emt 0:02:28]} Bxd3 {[%emt 0:00:05]} 47. Ke3 {[%emt 0:01:21]} Bf1 {[%emt 0:01:15]} 48. Kd4 {[%emt 0:00:22]} Kh6 {[%emt 0:01:41]} 49. Nf6 {[%emt 0:00:59]} g5 {[%emt 0:01:13]} 50. Ke5 {[%emt 0:01:32]} Kg6 {[%emt 0:00:38]} 51. Ne4 {[%emt 0:00:29]} h5 {[%emt 0:00:23]} 52. Nd6 {[%emt 0:00:20]} h4 {[%emt 0:00:15]} 53. b5 {[%emt 0:00:40]} g4 {[%emt 0:02:11]} 54. b6 {[%emt 0:00:23]} Ba6 {[%emt 0:00:10]} 55. Kf4 {[%emt 0:03:50]} g3 {[%emt 0:00:16]} 56. hxg3 {[%emt 0:00:04]} hxg3 {[%emt 0:00:10]} 57. Kxg3 {[%emt 0:00:08]} Kf6 {[%emt 0:00:18]} 1/2-1/2

[Event "29. Klatovy A 2023"]
[Site "Klatovy"]
[Date "2023.07.01"]
[Round "1.3"]
[White "Zhang, Brian"]
[Black "Hurdzan, Tomas"]
[Result "0-1"]
[ECO "B67"]
[WhiteElo "1821"]
[BlackElo "2309"]
[PlyCount "78"]
[EventDate "2023.07.01"]
[EventType "swiss"]
[EventRounds "9"]
[EventCountry "CZE"]
[TimeControl "120+30"]

1. e4 {[%emt 0:00:03]} c5 {[%emt 0:00:16]} 2. Nf3 {[%emt 0:00:15]} d6 {[%emt 0:00:07]} 3. d4 {[%emt 0:00:21]} cxd4 {[%emt 0:00:10]} 4. Nxd4 {[%emt 0:00:09]} Nf6 {[%emt 0:00:07]} 5. Nc3 {[%emt 0:00:18]} Nc6 {[%emt 0:00:28]} 6. Bg5 {[%emt 0:02:22]} e6 {[%emt 0:00:10]} 7. Qd2 {[%emt 0:00:51]} a6 {[%emt 0:01:01]} 8. O-O-O {[%emt 0:05:36]} Bd7 {[%emt 0:00:47]} 9. Nxc6 {[%emt 0:07:37]} Bxc6 {[%emt 0:02:28]} 10. f3 {[%emt 0:00:52]} Be7 {[%emt 0:03:02]} 11. h4 {[%emt 0:09:17]} h6 {[%emt 0:04:40]} 12. Bf4 {[%emt 0:07:16]} e5 {[%emt 0:08:02]} 13. Be3 {[%emt 0:05:32]} b5 {[%emt 0:00:07]} 14. g4 {[%emt 0:26:53]} b4 {[%emt 0:21:29]} 15. Nd5 {[%emt 0:01:06]} Nxd5 {[%emt 0:05:01]} 16. exd5 {[%emt 0:00:14]} Bb5 {[%emt 0:05:00]} 17. Bxb5+ {[%emt 0:11:56]} axb5 {[%emt 0:00:26]} 18. Qxb4 {[%emt 0:02:29]} O-O {[%emt 0:09:01]} 19. a3 {[%emt 0:04:22]} Bxh4 {[%emt 0:09:27]} 20. Qxb5 {[%emt 0:05:46]} Bg5 {[%emt 0:05:05]} 21. Qd3 {[%emt 0:05:28]} Ra4 {[%emt 0:06:14]} 22. Rh5 {[%emt 0:11:53]} Bxe3+ {[%emt 0:08:25]} 23. Qxe3 {[%emt 0:00:07]} Rf4 {[%emt 0:03:23]} 24. Rdh1 {[%emt 0:11:31]} f6 {[%emt 0:01:32]} 25. c3 {[%emt 0:08:10]} Qd7 {[%emt 0:06:33]} 26. R1h3 {[%emt 0:02:29]} Qb5 {[%emt 0:03:37]} 27. Rf5 {[%emt 0:00:41]} Rxf5 {[%emt 0:01:05]} 28. gxf5 {[%emt 0:00:28]} Qf1+ {[%emt 0:00:19]} 29. Kc2 {[%emt 0:00:20]} Qxh3 {[%emt 0:00:09]} 30. Qe4 {[%emt 0:00:18]} Qg2+ {[%emt 0:01:03]} 31. Kb1 {[%emt 0:00:30]} Rb8 {[%emt 0:01:12]} 32. b4 {[%emt 0:00:35]} Ra8 {[%emt 0:01:28]} 33. Qc4 {[%emt 0:00:44]} Rxa3 {[%emt 0:00:41]} 34. Qc8+ {[%emt 0:00:27]} Kh7 {[%emt 0:00:06]} 35. Qe8 {[%emt 0:00:25]} Qa2+ {[%emt 0:00:31]} 36. Kc1 {[%emt 0:00:08]} Rxc3+ {[%emt 0:00:12]} 37. Kd1 {[%emt 0:00:09]} Qb1+ {[%emt 0:00:14]} 38. Ke2 {[%emt 0:00:34]} Qb2+ {[%emt 0:00:05]} 39. Kd1 {[%emt 0:00:06]} Rc1# {[%emt 0:00:04]} 0-1

[Event "29. Klatovy A 2023"]
[Site "Klatovy"]
[Date "2023.07.01"]
[Round "1.4"]
[White "Slovak, Kilian"]
[Black "Polak, Michal 2002"]
[Result "1-0"]
[ECO "E60"]
[WhiteElo "2297"]
[BlackElo "1959"]
[PlyCount "61"]
[EventDate "2023.07.01"]
[EventType "swiss"]
[EventRounds "9"]
[EventCountry "CZE"]
[TimeControl "120+30"]

1. Nf3 {[%emt 0:00:27]} Nf6 {[%emt 0:00:32]} 2. b3 {[%emt 0:00:06]} g6 {[%emt 0:01:51]} 3. Bb2 {[%emt 0:00:08]} Bg7 {[%emt 0:00:06]} 4. g3 {[%emt 0:00:07]} c5 {[%emt 0:01:17]} 5. Bg2 {[%emt 0:00:17]} O-O {[%emt 0:00:40]} 6. O-O {[%emt 0:00:07]} Nc6 {[%emt 0:02:02]} 7. c4 {[%emt 0:04:30]} d6 {[%emt 0:06:50]} 8. d4 {[%emt 0:02:12]} Nd7 {[%emt 0:04:11]} 9. e3 {[%emt 0:02:16]} cxd4 {[%emt 0:05:45]} 10. Nxd4 {[%emt 0:05:21]} Nxd4 {[%emt 0:03:51]} 11. exd4 {[%emt 0:03:09]} e5 {[%emt 0:05:11]} 12. Nc3 {[%emt 0:04:44]} exd4 {[%emt 0:12:25]} 13. Nb5 {[%emt 0:09:16]} Ne5 {[%emt 0:03:29]} 14. Bxd4 {[%emt 0:07:50]} a6 {[%emt 0:08:31]} 15. Nc3 {[%emt 0:00:20]} Qf6 {[%emt 0:03:10]} 16. Kh1 {[%emt 0:06:41]} Qd8 {[%emt 0:05:44]} 17. Nd5 {[%emt 0:04:06]} Bg4 {[%emt 0:02:03]} 18. Qc2 {[%emt 0:06:17]} Rc8 {[%emt 0:08:31]} 19. Qc3 {[%emt 0:08:28]} f6 {[%emt 0:08:47]} 20. h3 {[%emt 0:02:24]} Bd7 {[%emt 0:06:49]} 21. Rae1 {[%emt 0:09:50]} Rf7 {[%emt 0:10:16]} 22. Nb6 {[%emt 0:05:49]} Bc6 {[%emt 0:05:11]} 23. Nxc8 {[%emt 0:01:36]} Qxc8 {[%emt 0:00:09]} 24. Kh2 {[%emt 0:01:08]} f5 {[%emt 0:01:21]} 25. f4 {[%emt 0:01:40]} Bxg2 {[%emt 0:02:27]} 26. Kxg2 {[%emt 0:00:38]} Qc6+ {[%emt 0:00:40]} 27. Kh2 {[%emt 0:02:15]} Nf3+ {[%emt 0:02:14]} 28. Qxf3 {[%emt 0:01:06]} Bxd4 {[%emt 0:01:17]} 29. Qxc6 {[%emt 0:00:34]} bxc6 {[%emt 0:00:06]} 30. Re8+ {[%emt 0:00:06]} Kg7 {[%emt 0:00:14]} 31. Rfe1 {[%emt 0:00:31]} 1-0

[Event "29. Klatovy A 2023"]
[Site "Klatovy"]
[Date "2023.07.01"]
[Round "1.5"]
[White "Strnad, Jakub"]
[Black "Horak, Martin"]
[Result "0-1"]
[ECO "B73"]
[WhiteElo "1957"]
[BlackElo "2266"]
[PlyCount "40"]
[EventDate "2023.07.01"]
[EventType "swiss"]
[EventRounds "9"]
[EventCountry "CZE"]
[TimeControl "120+30"]

1. e4 {[%emt 0:00:01]} c5 {[%emt 0:02:04]} 2. Nf3 {[%emt 0:00:14]} Nc6 {[%emt 0:02:09]} 3. d4 {[%emt 0:00:22]} cxd4 {[%emt 0:00:05]} 4. Nxd4 {[%emt 0:00:06]} g6 {[%emt 0:01:25]} 5. Nc3 {[%emt 0:01:43]} Bg7 {[%emt 0:00:06]} 6. Be3 {[%emt 0:00:27]} Nf6 {[%emt 0:00:28]} 7. Be2 {[%emt 0:04:01]} O-O {[%emt 0:00:59]} 8. O-O {[%emt 0:00:23]} d6 {[%emt 0:00:54]} 9. Kh1 {[%emt 0:06:28]} Bd7 {[%emt 0:02:08]} 10. h3 {[%emt 0:14:29]} Rc8 {[%emt 0:04:27]} 11. f4 {[%emt 0:03:18]} a6 {[%emt 0:05:19]} 12. a4 {[%emt 0:07:30]} Na5 {[%emt 0:04:45]} 13. e5 {[%emt 0:17:04]} Ne8 {[%emt 0:02:43]} 14. e6 {[%emt 0:01:31]} Bxe6 {[%emt 0:05:22]} 15. Nxe6 {[%emt 0:00:37]} fxe6 {[%emt 0:00:06]} 16. Bg4 {[%emt 0:01:24]} Qd7 {[%emt 0:16:52]} 17. Nd5 {[%emt 0:24:25]} Nc4 {[%emt 0:02:12]} 18. Bd4 {[%emt 0:01:06]} h5 {[%emt 0:05:22]} 19. Bxe6+ {[%emt 0:07:03]} Qxe6 {[%emt 0:00:16]} 20. Bxg7 {[%emt 0:00:05]} Rf5 {[%emt 0:02:53]} 0-1

[Event "29. Klatovy A 2023"]
[Site "Klatovy"]
[Date "2023.07.01"]
[Round "1.6"]
[White "Vorisek, Jaroslav"]
[Black "Flajsman, Petr"]
[Result "1-0"]
[ECO "A46"]
[WhiteElo "2260"]
[BlackElo "1956"]
[PlyCount "71"]
[EventDate "2023.07.01"]
[EventType "swiss"]
[EventRounds "9"]
[EventCountry "CZE"]
[TimeControl "120+30"]

1. d4 {[%emt 0:00:10]} Nf6 {[%emt 0:01:48]} 2. Nf3 {[%emt 0:00:34]} b5 {[%emt 0:02:58]} 3. e3 {[%emt 0:03:50]} a6 {[%emt 0:01:58]} 4. a4 {[%emt 0:00:34]} b4 {[%emt 0:05:27]} 5. Bd3 {[%emt 0:01:05]} e6 {[%emt 0:03:06]} 6. e4 {[%emt 0:12:16]} d5 {[%emt 0:07:35]} 7. exd5 {[%emt 0:23:46]} Qxd5 {[%emt 0:10:27]} 8. c4 {[%emt 0:05:59]} Qh5 {[%emt 0:05:48]} 9. Bf4 {[%emt 0:05:22]} c5 {[%emt 0:02:37]} 10. Nbd2 {[%emt 0:14:08]} Bb7 {[%emt 0:01:42]} 11. O-O {[%emt 0:01:27]} Nc6 {[%emt 0:08:50]} 12. d5 {[%emt 0:04:39]} exd5 {[%emt 0:03:27]} 13. Re1+ {[%emt 0:00:30]} Be7 {[%emt 0:00:33]} 14. Bd6 {[%emt 0:02:41]} Rd8 {[%emt 0:06:09]} 15. Bxe7 {[%emt 0:07:28]} Nxe7 {[%emt 0:01:21]} 16. Re5 {[%emt 0:00:08]} Qh6 {[%emt 0:07:18]} 17. Qe2 {[%emt 0:00:40]} Nfg8 {[%emt 0:04:38]} 18. Re1 {[%emt 0:00:35]} Qd6 {[%emt 0:01:57]} 19. cxd5 {[%emt 0:08:05]} Bxd5 {[%emt 0:01:16]} 20. Bxa6 {[%emt 0:03:19]} f6 {[%emt 0:04:07]} 21. Re3 {[%emt 0:02:32]} Kf7 {[%emt 0:01:03]} 22. Bc4 {[%emt 0:06:22]} Nf5 {[%emt 0:13:24]} 23. Rd3 {[%emt 0:02:56]} Nge7 {[%emt 0:04:00]} 24. Qe4 {[%emt 0:01:30]} Nd4 {[%emt 0:12:31]} 25. Nxd4 {[%emt 0:03:00]} cxd4 {[%emt 0:02:54]} 26. Qxd4 {[%emt 0:03:35]} Rhe8 {[%emt 0:06:31]} 27. Bxd5+ {[%emt 0:02:55]} Nxd5 {[%emt 0:00:09]} 28. Rxe8 {[%emt 0:00:03]} Kxe8 {[%emt 0:01:08]} 29. g3 {[%emt 0:00:21]} Qe7 {[%emt 0:04:41]} 30. Nf3 {[%emt 0:03:10]} Rd7 {[%emt 0:04:08]} 31. Qc4 {[%emt 0:00:23]} Qf7 {[%emt 0:01:17]} 32. Qc6 {[%emt 0:01:55]} g5 {[%emt 0:00:48]} 33. Nd4 {[%emt 0:01:39]} Qe7 {[%emt 0:00:20]} 34. Ne6 {[%emt 0:04:44]} Nb6 {[%emt 0:00:48]} 35. Nc5 {[%emt 0:00:59]} Kd8 {[%emt 0:00:33]} 36. Qxb6+ {[%emt 0:00:11]} 1-0

[Event "29. Klatovy A 2023"]
[Site "Klatovy"]
[Date "2023.07.01"]
[Round "1.7"]
[White "Novak, Vaclav2"]
[Black "Jurek, Josef"]
[Result "1/2-1/2"]
[ECO "B44"]
[WhiteElo "1948"]
[BlackElo "2251"]
[PlyCount "57"]
[EventDate "2023.07.01"]
[EventType "swiss"]
[EventRounds "9"]
[EventCountry "CZE"]
[TimeControl "120+30"]

1. e4 {[%emt 0:01:07]} c5 {[%emt 0:00:19]} 2. Nf3 {[%emt 0:00:15]} e6 {[%emt 0:00:15]} 3. d4 {[%emt 0:00:34]} cxd4 {[%emt 0:00:14]} 4. Nxd4 {[%emt 0:00:04]} Nc6 {[%emt 0:00:10]} 5. c3 {[%emt 0:01:26]} Nf6 {[%emt 0:02:50]} 6. Nd2 {[%emt 0:08:28]} d5 {[%emt 0:03:07]} 7. exd5 {[%emt 0:00:31]} Nxd4 {[%emt 0:04:00]} 8. Qa4+ {[%emt 0:01:15]} Qd7 {[%emt 0:01:53]} 9. Qxd4 {[%emt 0:00:50]} Qxd5 {[%emt 0:00:58]} 10. Qxd5 {[%emt 0:01:11]} Nxd5 {[%emt 0:00:21]} 11. Bb5+ {[%emt 0:00:20]} Bd7 {[%emt 0:01:24]} 12. Bxd7+ {[%emt 0:03:06]} Kxd7 {[%emt 0:00:17]} 13. O-O {[%emt 0:00:53]} Be7 {[%emt 0:03:23]} 14. Nf3 {[%emt 0:00:39]} Bf6 {[%emt 0:01:56]} 15. Bg5 {[%emt 0:00:28]} Bxg5 {[%emt 0:03:42]} 16. Nxg5 {[%emt 0:00:02]} f6 {[%emt 0:02:48]} 17. Ne4 {[%emt 0:05:46]} Rac8 {[%emt 0:00:35]} 18. Rad1 {[%emt 0:00:37]} Ke7 {[%emt 0:03:48]} 19. Rfe1 {[%emt 0:00:44]} Rhd8 {[%emt 0:03:49]} 20. g3 {[%emt 0:04:43]} g5 {[%emt 0:04:11]} 21. Rd2 {[%emt 0:03:16]} h6 {[%emt 0:05:56]} 22. Rde2 {[%emt 0:00:32]} Rc6 {[%emt 0:05:06]} 23. Nd2 {[%emt 0:03:44]} Kf7 {[%emt 0:07:20]} 24. Nb3 {[%emt 0:00:44]} e5 {[%emt 0:11:57]} 25. Rd2 {[%emt 0:00:34]} b6 {[%emt 0:05:18]} 26. Red1 {[%emt 0:01:44]} Ke6 {[%emt 0:00:23]} 27. Re1 {[%emt 0:02:06]} Kf7 {[%emt 0:06:54]} 28. Red1 {[%emt 0:00:56]} Ke6 {[%emt 0:00:54]} 29. Re1 {[%emt 0:00:02]} 1/2-1/2

[Event "29. Klatovy A 2023"]
[Site "Klatovy"]
[Date "2023.07.01"]
[Round "1.8"]
[White "Jun, Rudolf"]
[Black "Mik, Tomas"]
[Result "1-0"]
[ECO "B22"]
[WhiteElo "2223"]
[BlackElo "1940"]
[PlyCount "51"]
[EventDate "2023.07.01"]
[EventType "swiss"]
[EventRounds "9"]
[EventCountry "CZE"]
[TimeControl "120+30"]

1. e4 {[%emt 0:00:05]} e6 {[%emt 0:00:10]} 2. d4 {[%emt 0:04:47]} c5 {[%emt 0:00:09]} 3. c3 {[%emt 0:03:37]} Qc7 {[%emt 0:06:35]} 4. Nf3 {[%emt 0:01:28]} d6 {[%emt 0:00:37]} 5. Bf4 {[%emt 0:04:01]} Nf6 {[%emt 0:00:56]} 6. Nbd2 {[%emt 0:02:00]} Be7 {[%emt 0:00:56]} 7. Bd3 {[%emt 0:02:39]} O-O {[%emt 0:01:57]} 8. O-O {[%emt 0:02:18]} b6 {[%emt 0:03:39]} 9. e5 {[%emt 0:02:06]} dxe5 {[%emt 0:03:49]} 10. Bxe5 {[%emt 0:02:28]} Qd7 {[%emt 0:02:55]} 11. Ng5 {[%emt 0:05:14]} h6 {[%emt 0:03:08]} 12. Bxf6 {[%emt 0:01:19]} Bxf6 {[%emt 0:01:23]} 13. Nh7 {[%emt 0:03:06]} Rd8 {[%emt 0:03:19]} 14. Nxf6+ {[%emt 0:00:07]} gxf6 {[%emt 0:00:17]} 15. Ne4 {[%emt 0:03:36]} Qe7 {[%emt 0:01:56]} 16. Qg4+ {[%emt 0:01:39]} Kf8 {[%emt 0:00:41]} 17. Qh4 {[%emt 0:02:00]} Kg7 {[%emt 0:02:13]} 18. f4 {[%emt 0:01:33]} Nd7 {[%emt 0:10:10]} 19. Rf3 {[%emt 0:01:15]} Nf8 {[%emt 0:00:14]} 20. Rh3 {[%emt 0:00:24]} Ng6 {[%emt 0:02:35]} 21. Qxh6+ {[%emt 0:00:07]} Kg8 {[%emt 0:00:18]} 22. Ng5 {[%emt 0:01:30]} f5 {[%emt 0:00:57]} 23. Re1 {[%emt 0:00:53]} Qf6 {[%emt 0:01:06]} 24. Nh7 {[%emt 0:02:33]} Qg7 {[%emt 0:05:32]} 25. Qg5 {[%emt 0:00:05]} Bb7 {[%emt 0:01:56]} 26. Nf6+ {[%emt 0:00:10]} 1-0

[Event "29. Klatovy A 2023"]
[Site "Klatovy"]
[Date "2023.07.01"]
[Round "1.9"]
[White "Kucera, Petr2"]
[Black "Kopta, Pavel"]
[Result "1/2-1/2"]
[ECO "B51"]
[WhiteElo "1935"]
[BlackElo "2209"]
[PlyCount "118"]
[EventDate "2023.07.01"]
[EventType "swiss"]
[EventRounds "9"]
[EventCountry "CZE"]
[TimeControl "120+30"]

1. e4 {[%emt 0:00:03]} c5 {[%emt 0:00:28]} 2. Nf3 {[%emt 0:00:03]} d6 {[%emt 0:00:12]} 3. Bb5+ {[%emt 0:00:02]} Nd7 {[%emt 0:02:12]} 4. O-O {[%emt 0:00:03]} a6 {[%emt 0:00:21]} 5. Bxd7+ {[%emt 0:00:13]} Bxd7 {[%emt 0:00:07]} 6. d4 {[%emt 0:00:03]} cxd4 {[%emt 0:02:34]} 7. Qxd4 {[%emt 0:00:08]} Bc6 {[%emt 0:05:15]} 8. c4 {[%emt 0:02:34]} Nf6 {[%emt 0:01:02]} 9. Nc3 {[%emt 0:00:03]} e6 {[%emt 0:00:39]} 10. Bg5 {[%emt 0:01:20]} Be7 {[%emt 0:01:21]} 11. Rad1 {[%emt 0:00:10]} O-O {[%emt 0:02:17]} 12. Rfe1 {[%emt 0:04:20]} Qa5 {[%emt 0:03:51]} 13. Nd5 {[%emt 0:14:49]} Bxd5 {[%emt 0:14:41]} 14. exd5 {[%emt 0:00:26]} e5 {[%emt 0:00:45]} 15. Qd3 {[%emt 0:06:46]} Rfe8 {[%emt 0:10:01]} 16. Qb3 {[%emt 0:01:36]} Qc7 {[%emt 0:04:46]} 17. Rc1 {[%emt 0:18:03]} h6 {[%emt 0:18:05]} 18. Be3 {[%emt 0:00:11]} Nd7 {[%emt 0:01:00]} 19. a4 {[%emt 0:04:32]} a5 {[%emt 0:09:43]} 20. Nd2 {[%emt 0:04:55]} f5 {[%emt 0:03:22]} 21. c5 {[%emt 0:17:13]} f4 {[%emt 0:10:12]} 22. cxd6 {[%emt 0:00:28]} Qxd6 {[%emt 0:00:16]} 23. Ne4 {[%emt 0:10:20]} Qb4 {[%emt 0:01:52]} 24. Qxb4 {[%emt 0:00:13]} Bxb4 {[%emt 0:00:13]} 25. Bd2 {[%emt 0:00:02]} Bxd2 {[%emt 0:01:59]} 26. Nxd2 {[%emt 0:00:02]} Rec8 {[%emt 0:02:24]} 27. Nc4 {[%emt 0:03:41]} Rc5 {[%emt 0:02:21]} 28. b3 {[%emt 0:00:50]} Rxd5 {[%emt 0:02:37]} 29. Rcd1 {[%emt 0:00:51]} Rxd1 {[%emt 0:00:36]} 30. Rxd1 {[%emt 0:00:01]} Nc5 {[%emt 0:00:11]} 31. Rd5 {[%emt 0:01:49]} Nxb3 {[%emt 0:01:38]} 32. Nxe5 {[%emt 0:01:25]} Rc8 {[%emt 0:04:32]} 33. g3 {[%emt 0:00:13]} fxg3 {[%emt 0:01:12]} 34. hxg3 {[%emt 0:00:02]} Rc5 {[%emt 0:00:51]} 35. Rd8+ {[%emt 0:00:33]} Kh7 {[%emt 0:00:06]} 36. f4 {[%emt 0:00:16]} b5 {[%emt 0:04:16]} 37. axb5 {[%emt 0:00:34]} Rxb5 {[%emt 0:00:09]} 38. Ra8 {[%emt 0:00:19]} g5 {[%emt 0:01:39]} 39. Ra7+ {[%emt 0:00:59]} Kg8 {[%emt 0:00:26]} 40. Nf7 {[%emt 0:01:02]} gxf4 {[%emt 0:04:25]} 41. Nxh6+ {[%emt 0:00:04]} Kf8 {[%emt 0:00:19]} 42. gxf4 {[%emt 0:00:55]} Rh5 {[%emt 0:01:20]} 43. Ng4 {[%emt 0:00:34]} Rf5 {[%emt 0:00:32]} 44. Ne5 {[%emt 0:00:40]} Ke8 {[%emt 0:00:55]} 45. Kg2 {[%emt 0:00:37]} Nc5 {[%emt 0:05:44]} 46. Rxa5 {[%emt 0:00:59]} Ne6 {[%emt 0:00:11]} 47. Kg3 {[%emt 0:01:59]} Nxf4 {[%emt 0:02:59]} 48. Kg4 {[%emt 0:01:32]} Rf8 {[%emt 0:00:23]} 49. Ra8+ {[%emt 0:01:20]} Ke7 {[%emt 0:00:08]} 50. Nc6+ {[%emt 0:00:19]} Kf7 {[%emt 0:00:33]} 51. Ra7+ {[%emt 0:04:53]} Ke6 {[%emt 0:00:42]} 52. Nd4+ {[%emt 0:00:38]} Ke5 {[%emt 0:00:58]} 53. Nf3+ {[%emt 0:00:50]} Kd6 {[%emt 0:01:23]} 54. Ng5 {[%emt 0:00:56]} Nd3 {[%emt 0:01:15]} 55. Ra6+ {[%emt 0:00:45]} Kd5 {[%emt 0:00:11]} 56. Ra5+ {[%emt 0:00:22]} Nc5 {[%emt 0:00:29]} 57. Rxc5+ {[%emt 0:00:13]} Kxc5 {[%emt 0:00:04]} 58. Ne6+ {[%emt 0:00:05]} Kd5 {[%emt 0:00:06]} 59. Nxf8 {[%emt 0:00:11]} Ke5 {[%emt 0:00:14]} 1/2-1/2